Cogmind - Beta 14 @@@ ROGUE MODE // 2024.08.17 @ 00:48:38 Player: porkhorse Result: Self-destructed Performance ------------- Evolutions (1) 500 Regions Visited (2) 400 Robots Destroyed (49) 245 Value Destroyed (1245) 1245 Prototype IDs (0) 0 Alien Tech Used (0) 0 Bonus (0) 0 TOTAL SCORE: 2390 Bonus ------- None Cogmind --------- Core Integrity 146/400 Matter 242/300 Energy 265/265 System Corruption 0% Temperature Cool (0) Movement Hovering (180) Ox2 Location -9/Materials Parts ------- > --- POWER (1) -------- Improved Ion Engine > --- PROPULSION (3) --- Hover Unit > --- UTILITY (3) ------ Small Storage Unit Hacking Suite Tractor Beam > --- WEAPON (2) ------- Light Assault Rifle > --- INVENTORY (8) ---- Aluminum Leg Aluminum Leg Improved Heat Sink Medium Matter Pod (100) Particle Gun Particle Gun Flail Peak State ------------ > --- POWER ------------ Improved Ion Engine > --- PROPULSION ------- Light Treads Light Treads Improved Treads > --- UTILITY ---------- Medium Storage Unit Hacking Suite Tractor Beam > --- WEAPON ----------- Heavy Assault Rifle Flail > --- INVENTORY -------- Aluminum Leg Hover Unit Hover Unit Improved Hover Unit Improved Heat Sink Medium Matter Pod Particle Gun Particle Gun Light Assault Rifle [Rating: 16] Favorites ----------- Power Light Ion Engine Engine Light Ion Engine Propulsion Aluminum Leg Treads Light Treads Leg Aluminum Leg Hover Unit Hover Unit Utility Medium Storage Unit Device Terrain Scanner Storage Medium Storage Unit Processor Targeting Computer Hackware Hacking Suite Protection Hardened Light Armor Plating Weapon Beam Cannon Energy Gun Medium Laser Energy Cannon Beam Cannon Ballistic Gun Autogun Ballistic Cannon Improved Light Cannon Special Weapon Mining Laser Impact Weapon Mace Build | -11 -10 -9 ------- Run | Yrd Mat Mat Slots Evolved 2 | . . 2 Power . | . . . Propulsion 1 | . . 1 Utility 1 | . . 1 Weapon . | . . . Parts Attached 84 | 8 40 36 Power 7 | 1 4 2 Engine 7 | 1 4 2 Core . | . . . Reactor . | . . . Propulsion 29 | 2 6 21 Treads 5 | . . 5 Leg 17 | 2 6 9 Wheel . | . . . Hover 7 | . . 7 Flight . | . . . Utility 15 | 2 8 5 Device 9 | 1 6 2 Storage 3 | 1 1 1 Processor 1 | . 1 . Hackware 1 | . . 1 Protection 1 | . . 1 Artifact . | . . . Weapon 33 | 3 22 8 Energy Gun 2 | 2 . . Energy Cannon 2 | . 2 . Ballistic Gun 20 | 1 14 5 Ballistic Cannon 1 | . . 1 Launcher . | . . . Special Weapon 1 | . 1 . Impact Weapon 7 | . 5 2 Slashing Weapon . | . . . Piercing Weapon . | . . . Special Melee Weapon . | . . . Unidentified Prototypes . | . . . Parts Lost 18 | . . 18 Power 1 | . . 1 Propulsion 10 | . . 10 Utility 3 | . . 3 Weapon 4 | . . 4 Highest Loss Streak 10 | . . 10 To Critical Strikes . | . . . Average Slot Usage (%) 94 | . 99 90 Engine 11 | . 13 8 Treads 3 | . . 6 Leg 24 | . 27 20 Device 12 | . 10 14 Storage 12 | . 14 11 Processor 1 | . 3 . Protection 1 | . . 3 Energy Gun 1 | . 3 . Energy Cannon 7 | . 8 6 Ballistic Gun 14 | . 14 13 Peak Build Rating 16 | 7 10 16 Average Rating 9 | 5 8 11 On Entrance 5 | . 7 9 Naked Turns . | . . . Heaviest Build 27 | 13 22 27 Greatest Support 63 | 20 20 63 Greatest Overweight (x) 4 | 2 4 1 Average Overweight (x) . | . . . Largest Inventory Capacity 10 | 8 10 10 Average Capacity 9 | 7 9 9 Most Carried 10 | 5 10 10 Average Carried 7 | 2 8 7 Final Capacity 10 | 8 10 8 Final Carried 9 | 4 9 7 Class Distribution -------------------- 62% | Mutant 37% | Scavenger-Mutant Dominant Class ---------------- Mutant | -10/Materials Scavenger-Mutant | -9/Materials Resources | -11 -10 -9 ----------- Run | Yrd Mat Mat Matter Collected 1593 | 300 675 618 Remotely 500 | . 216 284 Salvage Created 1621 | 71 852 698 Parts 108 | 6 54 48 Haulers Intercepted . | . . . Recyclers Shooed 1 | . 1 . Parts Field Recycled . | . . . Retrieved Matter . | . . . Parts Self-Destructed . | . . . Prevented . | . . . Kills | -11 -10 -9 ------- Run | Yrd Mat Mat Combat Hostiles Destroyed 33 | . 16 17 Guns 18 | . 9 9 Cannons 13 | . 7 6 AOE 2 | . . 2 Classes Destroyed 9 | 2 6 1 Worker 1 | . 1 . Builder 4 | . 3 1 Tunneler 2 | 1 1 . Recycler 3 | 1 1 1 Operator 2 | . 2 . Watcher 4 | . 2 2 Swarmer 8 | . 3 5 Grunt 18 | . 13 5 Sentry 7 | . . 7 Best Kill Streak 5 | 1 5 4 Combat Bots Only 5 | . 5 4 Max Kills in Single Turn 2 | 1 2 2 Gunslinging . | . . . Exploded 2 | . . 2 Melee . | . . . Uniques/NPCs Destroyed . | . . . Combat | -11 -10 -9 -------- Run | Yrd Mat Mat Hostile Shots Fired 208 | . 40 168 Missed 53 | . 11 42 Damage Taken 2062 | . 347 1715 Core 279 | . 25 254 Absorbed by Shields . | . . . Core Remaining (%) 95 | 100 90 . Volleys Fired 141 | 12 54 75 Largest 2 | 2 2 2 Hottest 150 | 70 150 83 Shots Fired 270 | 24 108 138 Gun 185 | 24 75 86 Cannon 83 | . 31 52 Launcher . | . . . Special 2 | . 2 . Kinetic 183 | 12 70 101 Thermal 87 | 12 38 37 Explosive . | . . . Electromagnetic . | . . . Robot Hit Streak 17 | 5 17 8 Robot Miss Streak 9 | 2 9 6 Penetration Max . | . . . Secondary Targets . | . . . Shots Hit Robots 154 | 14 58 82 Core Hits 59 | 3 27 29 Critical Kills . | . . . Critical Parts Destroyed . | . . . Critical Strikes 1 | 1 . . Burn 1 | 1 . . Melee Attacks 28 | . 21 7 Impact 28 | . 21 7 Slashing . | . . . Piercing . | . . . Sneak Attacks 3 | . 3 . Combat Hostiles . | . . . Follow-up Attacks . | . . . Damage Inflicted 2827 | 177 1129 1521 Guns 1499 | 177 564 758 Cannons 946 | . 350 596 Explosions 162 | . . 162 Melee 212 | . 212 . Ramming 8 | . 3 5 Kinetic 1581 | 64 564 953 Thermal 1026 | 113 350 563 Explosive . | . . . Electromagnetic . | . . . Impact 212 | . 212 . Slashing . | . . . Piercing . | . . . Highest Corruption . | . . . Average Corruption . | . . . Corruption Purged . | . . . Corruption Blocked . | . . . Overload Shots . | . . . Overflow Damage 295 | . 155 140 Projectiles 5 | . 5 . Explosions 140 | . . 140 Melee 150 | . 150 . Knockbacks 3 | . 2 1 Impact 2 | . 2 . Kinetic 1 | . . 1 Secondary . | . . . Self-Inflicted Damage 225 | . 3 222 Shots 2 | . . 2 Rammed . | . . . Targets Rammed 3 | . . 3 Kicked 3 | . . 3 Crushed . | . . . Highest Temperature 268 | 54 227 268 Average Temperature 61 | 20 45 84 Received Heat Transfer 672 | . 183 489 Effects 2 | . . 2 Interference 2 | . . 2 Siege Activations . | . . . Robots Corrupted 2 | . 2 . Combat Hostiles . | . . . Parts Fried 10 | . 10 . Impact Corruptions 6 | . 6 . Robots Melted . | . . . Combat Hostiles . | . . . Parts Melted 2 | 1 . 1 Heat Transferred 2198 | 407 740 1051 Parts Sabotaged . | . . . Parts Stolen . | . . . Parts Stripped . | . . . Power Chain Reactions . | . . . Alert | -11 -10 -9 ------- Run | Yrd Mat Mat Peak Influence 375 | 10 357 375 Initial 117 | . 6 117 Average 184 | 3 173 219 Maximum Alert Level 1 | . 1 1 Low Security (%) 49 | 100 43 49 Level 1 50 | . 56 50 Level 2 . | . . . Level 3 . | . . . Level 4 . | . . . Level 5 . | . . . High Security . | . . . Max Security . | . . . Squads Dispatched 9 | . 6 3 Investigation 7 | . 4 3 Extermination . | . . . Reinforcement 2 | . 2 . Assault . | . . . Garrison . | . . . Intercept . | . . . Searches Triggered . | . . . Construction Impeded . | . . . Haulers Reinforced . | . . . Active Scanning Responses . | . . . Cargo Convoy Interrupts . | . . . Stealth | -11 -10 -9 --------- Run | Yrd Mat Mat Distress Signals 4 | . 2 2 Communications Jammed . | . . . Distress Signals . | . . . Times Spotted 56 | . 27 29 Peak Tracking Total 8 | . 5 8 Tactical Retreats 5 | . 2 3 Traps | -11 -10 -9 ------- Run | Yrd Mat Mat Traps Triggered 6 | . 5 1 Indirectly . | . . . Trap Hack Attempts . | . . . Triggered . | . . . Disarmed . | . . . Reprogrammed . | . . . Reused . | . . . Traps Extracted . | . . . Installed . | . . . Triggered . | . . . Machines | -11 -10 -9 ---------- Run | Yrd Mat Mat Machines Disabled 5 | . 1 4 Max in Single Turn 3 | . 1 3 Machines Repaired . | . . . Machines Dismantled . | . . . Machines Sabotaged . | . . . Overloaded Fab Kills . | . . . Hacking | -11 -10 -9 --------- Run | Yrd Mat Mat Machines Accessed 10 | . 7 3 Terminals 8 | . 5 3 Fabricators . | . . . Repair Stations . | . . . Recycling Units 2 | . 2 . Scanalyzers . | . . . Garrison Access . | . . . Total Hacks 34 | . 25 9 Successful 17 | . 13 4 Failed 17 | . 12 5 Catastrophic 4 | . 4 . Database Lockouts . | . . . Manual 18 | . 12 6 Terminals 28 | . 19 9 Fabricators . | . . . Repair Stations . | . . . Recycling Units 6 | . 6 . Scanalyzers . | . . . Garrison Access . | . . . Terminal Hacks 12 | . 8 4 Robot Analysis 1 | . 1 . Emergency Access Points 1 | . . 1 Terminal Index 1 | . . 1 Locate Traps 1 | . 1 . Dispatch Records 1 | . 1 . Patrol Status 1 | . . 1 Recall Reinforcements 1 | . 1 . Hauler Manifests 1 | . 1 . Registered Components 1 | . 1 . Zone Layout 3 | . 2 1 Fabricator Hacks . | . . . Repair Station Hacks . | . . . Recycling Unit Hacks 4 | . 4 . Report Inventory 4 | . 4 . Scanalyzer . | . . . Garrison Access Hacks . | . . . Unauthorized Hacks 1 | . 1 . Terminals . | . . . Fabricators . | . . . Repair Stations . | . . . Recycling Units 1 | . 1 . Monitor 1 | . 1 . Scanalyzers . | . . . Garrison Access . | . . . Data Cores Recovered . | . . . Used . | . . . Hacking Detections 8 | . 5 3 Full Trace Events 7 | . 5 2 Feedback Events . | . . . Feedback Blocked . | . . . Robot Schematics Acquired . | . . . Robots Built . | . . . Authchips . | . . . Time . | . . . Total Robot Build Rating . | . . . Part Schematics Acquired . | . . . Parts Built . | . . . Authchips . | . . . Time . | . . . Total Part Build Rating . | . . . Parts Repaired . | . . . Time . | . . . Parts Recycled . | . . . Recycled Matter . | . . . Retrieved Matter . | . . . Retrieved Components . | . . . Parts Scanalyzed . | . . . Part Schematics Acquired . | . . . Parts Damaged . | . . . Bothacking | -11 -10 -9 ------------ Run | Yrd Mat Mat Used RIF Installer . | . . . Robots Hacked . | . . . Non-combat . | . . . Combat . | . . . Robot Hacks Applied . | . . . Relay Couplers Released . | . . . Fabnet Peak Effective % . | . . . Robots Rewired . | . . . Allies Hacked . | . . . Hacks Repelled . | . . . Allies | -11 -10 -9 -------- Run | Yrd Mat Mat Total Allies . | . . . Largest Group . | . . . Highest-Rated Group . | . . . Highest-Rated Ally . | . . . Total Orders . | . . . Ally Attacks . | . . . Total Damage . | . . . Kills . | . . . Allies Corrupted . | . . . Allies Melted . | . . . Intel | -11 -10 -9 ------- Run | Yrd Mat Mat Robot Analysis Total 1 | . 1 . Derelict Logs Recovered . | . . . Drone Launches . | . . . Drone Recoveries . | . . . Exploration | -11 -10 -9 ------------- Run | Yrd Mat Mat Turns Passed 2655 | 148 1338 1169 Spaces Moved 1483 | 84 808 591 Core 16 | 15 1 . Treads 149 | . . 149 Legs 1287 | 69 807 411 Wheels . | . . . Hover 31 | . . 31 Flight . | . . . Fastest Speed 50 | 50 120 52 Average Speed 129 | 111 126 134 Slowest Speed 250 | 150 250 190 Overloaded Moves . | . . . Propulsion Burnouts . | . . . Robots Hopped . | . . . Cave-ins Triggered . | . . . Exploration Rate (%) 45 | 5 93 39 Regions Visited 2 Branch Regions . Pre-discovered Areas . | . . . Known Exits Taken . | . . . Unknown Exits Taken 2 | 1 1 . Scrap Searched . | . . . Spaces Dug 20 | . 14 6 Terrain Destroyed 52 | . 14 38 Melee 18 | . 12 6 Projectile 2 | . 2 . AOE 32 | . . 32 Terrain Rammed 1 | . 1 . Walls Destroyed . | . . . Machines Disabled . | . . . Actions | -11 -10 -9 --------- Run | Yrd Mat Mat Total 1901 | 111 974 816 Wait 111 | . 26 85 Move 1481 | 83 807 591 Hop . | . . . Pick Up 29 | 6 11 12 Fast Attach 20 | 7 6 7 Attach 13 | . 2 11 Detach 2 | . 1 1 Swap 51 | 1 32 18 Drop 21 | 2 13 6 Fire 141 | 12 54 75 Melee 28 | . 21 7 Ram 1 | . 1 . Kick 3 | . . 3 Crush . | . . . Escape Stasis . | . . . Rewire . | . . . Trap . | . . . Miscellaneous . | . . . Route ------- -11/Scrapyard -10/Materials (discovered 5 exits: *Mat x3 / [*Min] / [*Sub]) -9/Materials (discovered 1 exit: [*Min]) History --------- Turn | Location | Event 35 | -11/Scrapyard | Discovered new exit (range 16) 149 | -11/Scrapyard | Entered Materials 303 | -10/Materials | Build established: Mutant 320 | -10/Materials | Discovered new exit (range 15) 433 | -10/Materials | Discovered new exit (range 16) 519 | -10/Materials | Discovered new exit (range 13) 541 | -10/Materials | Discovered new exit (range 7) 1281 | -10/Materials | Discovered new exit (range 3) 1487 | -10/Materials | Entered another Materials area 1487 | -9/Materials | Evolved 2 slots: Propulsion x1, Utility x1 1968 | -9/Materials | Discovered new exit (range 9) 2094 | -9/Materials | Build established: Scavenger-Mutant 2218 | -9/Materials | Core integrity fell below 50% 2284 | -9/Materials | Lost 10 parts (1p5n1u3w) 2656 | -9/Materials | Self-destructed Last Messages --------------- 02479_ Acquired Hover Unit. 02483_ Acquired Particle Gun. 02493_ Acquired Imp. Ion Engine. 02494_ Acquired 10 matter. 02498_ Acquired 7 matter. 02525_ U-05 Engineer builds a Wall. 02553_ G-34 Mercenary destroyed. 02557_ Acquired 31 matter. 02561_ Acquired Aluminum Leg. 02568_ Acquired 10 matter. 02569_ Acquired 5 matter. 02621_ Dropped Lgt. Treads. 02625_ Dropped Imp. Treads. 02625_ Acquired Sml. Storage Unit. 02643_ Hover Unit destroyed. 02649_ Hvy. Assault Rifle destroyed. 02653_ U-05 Engineer destroyed. 02654_ Acquired 27 matter. 02655_ S-10 Pest destroyed. 02655_ Imp. Hover Unit destroyed. Map ----- +----------------------------------------------------+ | ?????????????????#?????????# """ #?# #?# ! # | | ????????????????#??##??#???#= """ #?# #?# # | | ????????????? ? ????#????#?# ### ### !# | | ??????????? ?????????#???#?########?# #?# # | | ?????????? ???? ?#?????#???## #??#?## ### # | | ?????????? ??????##?????############# + ! # | | ???????????????????????#?# #?# ### / # | | ??? #############[ """ ### ### # | | ??? [ +* """ # ###+###### | | ??? ############# """ # T * ##? | | ??????????????????????#?## + "" #?? | | ??????????????????????#?## """ # #?? | | ????????????????#?#???##?# """ # ########?# | | ??????????????#?????? #??# """ ## ########?#? | | ?????????????????##?? ##?# ## # #??? | | ???????????????????? #?############ # #??? | | ???????? ??????????? #???#??????#?# + "" #??? | | ?????????? ???????????#??#??##??#??# # S"" #??? | | ??????????????????????##?????#??##?# # "" ##?# | | ?????????? ???????????#????????#???# # #??? | | ?????????????? ???????##??###??#???# ##+#####??? | | ??????????????????#???#??#?????????# ## #??????# | | ??????????????????# ??#???#????#??## ## ##????#? | | ?????????????###### ############## ## #??????? | | ?????????? s ks ##+######## | | ?????????? @ ! s # # | | ?????????? k k ! %= # # | | ?????????????### ################# # """ # | | ????????????????????## " ###?# # """ # | | ?????????????? ?????## ! !##?## # """ "# | | ????????????????????## ##??# + T# | | ???????????????????### ! ##### # "# | | ???????????????????## # ##T # # | | ?????????????? ????#"# ##### ########### | | ???????????????????# # # ### #????? #??? | | ???????????????????# # ###?# #??????#??# | | ????????????#??????#######/######### #??""???#?? | | ????????????????????# # +?????????? | | ????????????????????#### #? ?? ???? | | ?????????????????? ????# #?????????# | | ????????????????????#?## #?????????# | | ??????????????#??????#?# # ## #????????#? | | ???????????????? ? ????# # ==## #??#??????? | | ?????????????????? ????# #! =!## #????###### | | ????????????????????#??# ##!!!!### ###??# """ | | ?????????????????????### #######?# ##?#?# """ | | ???????????????????????# #??#????# ##???# """ | | ??????????????????????## #?????#?# ##???# | | ?????????????????????## #?#??#??# ##### | | ??????????????######### ##??????# + | +----------------------------------------------------+ Best States ------------- Heat Dissipation 28 Energy Generation 12 Energy Capacity 265 Matter Stores 300 Matter Capacity 300 Sight Range 16 Terrain Scan Range 14 Terrain Scan Density 10 ECM Strength 1 Armor Coverage 150 Evasion (%) 55 Targeting Accuracy 5 Recoil Reduction 3 Offensive Hacking 10 Item Schematics ----------------- None Robot Schematics ------------------ None Fabricated ------------ Nothing Alien Tech Used ----------------- None Achievements -------------- None Challenges ------------ None Game ------ Seed AssemblyBurstCompactor Manual? 0 Play Time 00:26:27 Cumulative 24.2 hours Start 2024.08.17 @ 00:01:24 End 2024.08.17 @ 00:48:38 Sessions 1 Manual Loads 0 Difficulty Rogue Special Mode None Game No. 25 Rogue 6 Adventurer 19 Explorer 0 Win Type - Total 0 Types 0/0/0/0/0/0/0/0/0 Lore% 7 Gallery% 21 Achievement% 17 Wizard Run 0 Options --------- Layout 0 ASCII 0 Keyboard 1 Movement Arrows Keybinds 0 Fullscreen 2 Font 18/SmallcapsGlow Map View 76x50 Zoom Use 1% Tactical HUD 1 Map Filters NONE Filters NONE Steam 1 RUN: 28abc133-4bef-4b5e-9297-01a3ae2a3f26